Cogmind - Beta 14 @@@ ROGUE MODE // 2024.10.20 @ 06:15:09 Player: skkpq Result: Destroyed by H-71 Marshal with Heavy Mass Driver Performance ------------- Evolutions (5) 2500 Regions Visited (6) 1200 Robots Destroyed (50) 250 Value Destroyed (1932) 1932 Prototype IDs (5) 100 Alien Tech Used (0) 0 Bonus (0) 0 TOTAL SCORE: 5982 Bonus ------- None Cogmind --------- Core Integrity 0/1000 Matter 295/300 Energy 94/100 System Corruption 6% Temperature Cool (9) Movement Core (50) Location -5/Factory Parts ------- > --- POWER (1) -------- (None) > --- PROPULSION (6) --- (None) > --- UTILITY (7) ------ Signal Interpreter Melee Analysis Suite > --- WEAPON (3) ------- (None) > --- INVENTORY (5) ---- Angular Momentum Engine High-capacity Storage Unit High-capacity Storage Unit Microactuators Improved Weapon Shielding Peak State ------------ > --- POWER ------------ Micro Nuclear Core > --- PROPULSION ------- Advanced Treads Armored Wheel Armored Wheel Armored Wheel Armored Wheel Armored Wheel > --- UTILITY ---------- Improved Heat Sink Huge Storage Unit Compact Matter Pod Signal Interpreter Improved Targeting Computer Melee Analysis Suite Hardened Light Armor Plating > --- WEAPON ----------- Long-range Proton Cannon Gauss Cannon Powered Hammer > --- INVENTORY -------- Enhanced Nuclear Core Angular Momentum Engine Light Angular Momentum Engine Improved Heat Sink Coolant Injector High-capacity Storage Unit High-capacity Storage Unit Matter Compressor Microactuators Reaction Control System Improved Weapon Shielding Improved Weapon Shielding Improved Weapon Shielding Hardened Medium Armor Plating Insulated Plating Hacking Suite Gatling Laser Plasma Rifle Gauss Rifle Gauss Rifle Assault Cannon Remote Datajack Powered Hammer [Rating: 54] Favorites ----------- Power Light Nuclear Core Engine Improved Deuterium Engine Power Core Light Nuclear Core Propulsion Armored Wheel Treads Improved Treads Leg Aluminum Leg Wheel Armored Wheel Utility Huge Storage Unit Device Improved Heat Sink Storage Huge Storage Unit Processor Melee Analysis Suite Protection Hardened Light Armor Plating Weapon Powered Hammer Energy Gun Heavy EM Shotgun Energy Cannon Beam Cannon Ballistic Gun Flak Gun Ballistic Cannon Gauss Cannon Launcher Rocket Launcher Impact Weapon Powered Hammer Build | -11 -10 -9 -8 -7 -6 -5 ------- Run | Yrd Mat Mat Mat Fac Fac Fac Slots Evolved 10 | . . 2 2 2 2 2 Power . | . . . . . . . Propulsion 4 | . . 1 2 . . 1 Utility 5 | . . 1 . 1 2 1 Weapon 1 | . . . . 1 . . Parts Attached 72 | 6 11 7 16 13 11 8 Power 7 | 1 1 . 2 2 . 1 Engine 3 | 1 . . 1 1 . . Core 4 | . 1 . 1 1 . 1 Reactor . | . . . . . . . Propulsion 31 | 2 7 4 10 3 3 2 Treads 14 | . 5 3 5 . 1 . Leg 2 | 2 . . . . . . Wheel 15 | . 2 1 5 3 2 2 Hover . | . . . . . . . Flight . | . . . . . . . Utility 15 | 1 2 2 1 3 5 1 Device 6 | . 1 . . 3 2 . Storage 4 | 1 1 1 . . 1 . Processor 3 | . . . 1 . 1 1 Hackware . | . . . . . . . Protection 2 | . . 1 . . 1 . Artifact . | . . . . . . . Weapon 19 | 2 1 1 3 5 3 4 Energy Gun 3 | 1 . . 1 . . 1 Energy Cannon 3 | . 1 . . 1 . 1 Ballistic Gun 5 | 1 . 1 1 2 . . Ballistic Cannon 2 | . . . . . 1 1 Launcher 3 | . . . . 1 2 . Special Weapon . | . . . . . . . Impact Weapon 3 | . . . 1 1 . 1 Slashing Weapon . | . . . . . . . Piercing Weapon . | . . . . . . . Special Melee Weapon . | . . . . . . . Unidentified Prototypes 3 | . . 1 1 . . 1 Parts Lost 36 | . 4 1 7 1 5 18 Power 4 | . 1 . 1 . . 2 Propulsion 14 | . 2 . 3 1 2 6 Utility 8 | . . 1 1 . 2 4 Weapon 10 | . 1 . 2 . 1 6 Highest Loss Streak 16 | . 4 1 4 1 4 16 To Critical Strikes . | . . . . . . . Average Slot Usage (%) 96 | . 96 96 96 99 97 87 Engine 2 | . 6 . . 5 . . Core 5 | . 7 11 7 . 6 4 Treads 11 | . 14 21 29 . 1 4 Wheel 21 | . 8 10 14 37 30 21 Device 6 | . 12 5 . 7 10 4 Storage 15 | . 14 22 18 15 12 10 Processor 6 | . . . 6 7 7 16 Protection 2 | . . 2 1 . 5 4 Energy Gun 2 | . 6 . 3 1 . 1 Energy Cannon 3 | . 6 11 1 4 . 1 Ballistic Gun 7 | . 14 11 6 10 4 . Launcher 1 | . . . . 2 5 1 Impact Weapon 3 | . . . 6 2 6 4 Peak Build Rating 54 | 6 11 18 26 38 46 54 Average Rating 28 | 4 8 15 23 33 43 46 On Entrance 20 | . 6 11 18 24 37 46 Naked Turns . | . . . . . . . Heaviest Build 112 | 12 91 94 94 104 109 112 Greatest Support 115 | 20 40 46 115 62 56 60 Greatest Overweight (x) 8 | . 8 5 1 2 2 8 Average Overweight (x) 1 | . 2 4 . 1 1 1 Largest Inventory Capacity 25 | 8 25 25 25 25 25 25 Average Capacity 24 | 6 22 25 25 25 25 24 Most Carried 25 | 6 21 25 25 25 25 25 Average Carried 21 | 3 13 23 24 24 23 22 Final Capacity 25 | 8 25 25 25 25 25 5 Final Carried 25 | 6 21 25 25 25 20 5 Class Distribution -------------------- 52% | Mutant 34% | Scavenger-Mutant 13% | Scavenger-Gunner Dominant Class ---------------- Mutant | -10/Materials Mutant | -9/Materials Mutant | -8/Materials Scavenger-Gunner | -7/Factory Scavenger-Mutant | -6/Factory Scavenger-Mutant | -5/Factory Resources | -11 -10 -9 -8 -7 -6 -5 ----------- Run | Yrd Mat Mat Mat Fac Fac Fac Matter Collected 1692 | 222 215 206 305 309 223 212 Remotely . | . . . . . . . Salvage Created 1934 | . 215 258 504 482 175 300 Parts 87 | . 12 15 20 24 11 5 Haulers Intercepted . | . . . . . . . Recyclers Shooed 1 | . . . . . 1 . Parts Field Recycled . | . . . . . . . Retrieved Matter . | . . . . . . . Parts Self-Destructed . | . . . . . . . Prevented . | . . . . . . . Kills | -11 -10 -9 -8 -7 -6 -5 ------- Run | Yrd Mat Mat Mat Fac Fac Fac Combat Hostiles Destroyed 41 | . 4 4 10 11 6 6 Melee 10 | . . . 7 1 . 2 Guns 11 | . 4 3 . 3 1 . Cannons 5 | . . 1 . 3 . 1 AOE 10 | . . . 1 3 4 2 Classes Destroyed 12 | . 2 3 3 3 . 1 Worker 3 | . . . 1 2 . . Builder 1 | . . . . . . 1 Tunneler 1 | . . . . 1 . . Recycler 1 | . . 1 . . . . Watcher 3 | . 2 . . . 1 . Swarmer 5 | . . . 1 . 4 . Grunt 25 | . 4 1 6 8 . 6 Brawler 1 | . . 1 . . . . Duelist 1 | . . . 1 . . . Sentry 6 | . . 2 2 1 1 . Hunter 2 | . . . . 1 1 . Programmer 1 | . . . . 1 . . Best Kill Streak 6 | . 3 2 4 6 4 4 Combat Bots Only 4 | . 2 2 4 3 4 3 Max Kills in Single Turn 4 | . 1 1 1 4 1 2 Gunslinging . | . . . . . . . Exploded 3 | . . . 1 3 1 2 Melee 1 | . . . 1 1 . 1 Uniques/NPCs Destroyed . | . . . . . . . Combat | -11 -10 -9 -8 -7 -6 -5 -------- Run | Yrd Mat Mat Mat Fac Fac Fac Hostile Shots Fired 536 | . 37 29 159 68 101 142 Missed 152 | . 4 7 41 19 43 38 Damage Taken 6462 | . 462 308 1727 607 583 2775 Core 1587 | . 125 11 262 106 57 1026 Absorbed by Shields . | . . . . . . . Redirected to Shielding 51 | . . . 51 . . . Regen/Repaired (Parts) 305 | . . 72 . 81 152 . Core Remaining (%) 79 | 100 50 97 52 84 93 . Volleys Fired 106 | . 29 17 15 27 11 7 Largest 3 | . 2 2 2 3 2 2 Hottest 141 | . 80 83 83 141 84 113 Shots Fired 199 | . 51 34 22 63 17 12 Gun 131 | . 50 17 15 39 9 1 Cannon 56 | . 1 17 7 20 4 7 Launcher 12 | . . . . 4 4 4 Special . | . . . . . . . Kinetic 110 | . 29 17 10 34 13 7 Thermal 66 | . 22 17 7 20 . . Explosive 12 | . . . . 4 4 4 Electromagnetic 11 | . . . 5 5 . 1 Robot Hit Streak 20 | . 20 6 9 8 5 5 Robot Miss Streak 11 | . 4 1 1 9 11 2 Penetration Max . | . . . . . . . Secondary Targets 1 | . 1 . . . . . Max Gunslinging Chain 1 | . 1 . . . . . Shots Hit Robots 204 | . 37 24 42 46 17 38 Core Hits 101 | . 12 9 11 41 16 12 Critical Kills 2 | . . . 1 1 . . Critical Parts Destroyed 9 | . . . 5 . 2 2 Critical Strikes 15 | . 2 . 6 1 2 4 Burn 2 | . 2 . . . . . Blast 2 | . . . . . . 2 Smash 11 | . . . 6 1 2 2 Melee Attacks 81 | . . . 31 7 9 34 Impact 81 | . . . 31 7 9 34 Slashing . | . . . . . . . Piercing . | . . . . . . . Sneak Attacks 2 | . . . 1 1 . . Combat Hostiles . | . . . . . . . Follow-up Attacks . | . . . . . . . Damage Inflicted 5423 | . 470 369 977 1446 738 1423 Guns 1548 | . 470 193 251 491 134 9 Cannons 660 | . . 176 70 246 59 109 Explosions 1209 | . . . 73 479 330 327 Melee 2006 | . . . 583 230 215 978 Ramming . | . . . . . . . Kinetic 1319 | . 283 193 128 413 193 109 Thermal 752 | . 187 176 143 246 . . Explosive 1136 | . . . . 479 330 327 Electromagnetic 210 | . . . 123 78 . 9 Impact 2006 | . . . 583 230 215 978 Slashing . | . . . . . . . Piercing . | . . . . . . . Highest Corruption 6 | . . . . 2 . 6 Average Corruption 2 | . . . . 2 . 3 Corruption Purged . | . . . . . . . Corruption Blocked . | . . . . . . . Effects 7 | . . . . 5 . 2 Message Errors 3 | . . . . 3 . . Heat Flow Errors 1 | . . . . . . 1 Energy Discharges 2 | . . . . 2 . . Parts Rejected 1 | . . . . . . 1 Overload Shots . | . . . . . . . Overflow Damage 381 | . . . 143 44 93 101 Projectiles . | . . . . . . . Explosions 21 | . . . . . 21 . Melee 360 | . . . 143 44 72 101 Knockbacks 10 | . . . 2 2 . 6 Impact 9 | . . . 2 2 . 5 Kinetic 1 | . . . . . . 1 Secondary . | . . . . . . . Self-Inflicted Damage 126 | . . . 42 41 . 43 Shots 3 | . . . 1 1 . 1 Rammed 1 | . . . . . . 1 Targets Rammed 1 | . . . . . . 1 Kicked . | . . . . . . . Crushed . | . . . . . . . Highest Temperature 191 | . 183 126 118 69 . 191 Average Temperature 59 | . 85 58 45 19 . 72 Received Heat Transfer 1975 | . 279 111 792 285 96 412 Siege Activations . | . . . . . . . Robots Corrupted 6 | . . . 3 1 1 1 Combat Hostiles 5 | . . . 2 1 1 1 Parts Fried 8 | . . . 3 2 1 2 Impact Corruptions 15 | . . . 6 2 2 5 Robots Melted . | . . . . . . . Combat Hostiles . | . . . . . . . Parts Melted 4 | . 4 . . . . . Heat Transferred 1765 | . 703 370 248 444 . . Parts Sabotaged . | . . . . . . . Parts Stolen . | . . . . . . . Parts Stripped . | . . . . . . . Power Chain Reactions 1 | . . . 1 . . . Alert | -11 -10 -9 -8 -7 -6 -5 ------- Run | Yrd Mat Mat Mat Fac Fac Fac Peak Influence 329 | . 148 135 144 292 329 263 Initial 142 | . . . . 65 142 80 Average 120 | . 58 70 74 181 186 163 Maximum Alert Level 1 | . . . . 1 1 1 Low Security (%) 80 | 100 100 100 100 49 74 60 Level 1 19 | . . . . 50 25 39 Level 2 . | . . . . . . . Level 3 . | . . . . . . . Level 4 . | . . . . . . . Level 5 . | . . . . . . . High Security . | . . . . . . . Max Security . | . . . . . . . Squads Dispatched 13 | . . . 1 7 2 3 Investigation 3 | . . . 1 1 1 . Extermination 2 | . . . . 1 1 . Reinforcement 5 | . . . . 2 . 3 Assault . | . . . . . . . Garrison 3 | . . . . 3 . . Intercept . | . . . . . . . Searches Triggered . | . . . . . . . Construction Impeded 1 | . . . . . . 1 Haulers Reinforced . | . . . . . . . Active Scanning Responses . | . . . . . . . Cargo Convoy Interrupts . | . . . . . . . Stealth | -11 -10 -9 -8 -7 -6 -5 --------- Run | Yrd Mat Mat Mat Fac Fac Fac Distress Signals 6 | . 3 . . 1 1 1 Communications Jammed . | . . . . . . . Distress Signals . | . . . . . . . Times Spotted 73 | . 9 6 12 21 11 14 Peak Tracking Total 6 | . 4 2 6 4 5 5 Tactical Retreats 5 | . 1 . . 1 1 2 Traps | -11 -10 -9 -8 -7 -6 -5 ------- Run | Yrd Mat Mat Mat Fac Fac Fac Traps Triggered 2 | . . . . 2 . . Indirectly . | . . . . . . . Trap Hack Attempts . | . . . . . . . Triggered . | . . . . . . . Disarmed . | . . . . . . . Reprogrammed 6 | . 6 . . . . . Reused . | . . . . . . . Traps Extracted . | . . . . . . . Installed . | . . . . . . . Triggered . | . . . . . . . Machines | -11 -10 -9 -8 -7 -6 -5 ---------- Run | Yrd Mat Mat Mat Fac Fac Fac Machines Disabled 1 | . . . . . 1 . Max in Single Turn 1 | . . . . . 1 . Machines Repaired . | . . . . . . . Machines Dismantled . | . . . . . . . Machines Sabotaged . | . . . . . . . Overloaded Fab Kills . | . . . . . . . Hacking | -11 -10 -9 -8 -7 -6 -5 --------- Run | Yrd Mat Mat Mat Fac Fac Fac Machines Accessed 21 | . 6 2 2 3 5 3 Terminals 15 | . 6 . 2 2 3 2 Fabricators . | . . . . . . . Repair Stations 5 | . . 1 . 1 2 1 Recycling Units 1 | . . 1 . . . . Scanalyzers . | . . . . . . . Garrison Access . | . . . . . . . Total Hacks 49 | . 12 4 5 8 11 9 Successful 23 | . 6 3 2 3 7 2 Failed 26 | . 6 1 3 5 4 7 Catastrophic 9 | . 2 . . 3 2 2 Database Lockouts . | . . . . . . . Manual 14 | . 8 . 2 3 1 . Terminals 33 | . 12 . 5 5 5 6 Fabricators . | . . . . . . . Repair Stations 15 | . . 3 . 3 6 3 Recycling Units 1 | . . 1 . . . . Scanalyzers . | . . . . . . . Garrison Access . | . . . . . . . Terminal Hacks 11 | . 6 . 2 1 1 1 Robot Analysis 1 | . 1 . . . . . Prototype ID Bank 1 | . 1 . . . . . Emergency Access Points 2 | . 2 . . . . . Alert Level 1 | . . . 1 . . . Locate Traps 4 | . 1 . . 1 1 1 Reprogram Traps 1 | . 1 . . . . . Recall Investigation 1 | . . . 1 . . . Fabricator Hacks . | . . . . . . . Repair Station Hacks 11 | . . 2 . 2 6 1 Scan Component 6 | . . 1 . 1 3 1 Repair 5 | . . 1 . 1 3 . Recycling Unit Hacks 1 | . . 1 . . . . Report Inventory 1 | . . 1 . . . . Scanalyzer . | . . . . . . . Garrison Access Hacks . | . . . . . . . Unauthorized Hacks . | . . . . . . . Terminals . | . . . . . . . Fabricators . | . . . . . . . Repair Stations . | . . . . . . . Recycling Units . | . . . . . . . Scanalyzers . | . . . . . . . Garrison Access . | . . . . . . . Data Cores Recovered . | . . . . . . . Used . | . . . . . . . Hacking Detections 15 | . 5 . 2 3 2 3 Full Trace Events 3 | . . . 1 1 1 . Feedback Events . | . . . . . . . Feedback Blocked . | . . . . . . . Robot Schematics Acquired . | . . . . . . . Robots Built . | . . . . . . . Authchips . | . . . . . . . Time . | . . . . . . . Total Robot Build Rating . | . . . . . . . Part Schematics Acquired . | . . . . . . . Parts Built . | . . . . . . . Authchips . | . . . . . . . Time . | . . . . . . . Total Part Build Rating . | . . . . . . . Parts Repaired 5 | . . 1 . 1 3 . Time 150 | . . 32 . 32 86 . Parts Recycled . | . . . . . . . Recycled Matter . | . . . . . . . Retrieved Matter . | . . . . . . . Retrieved Components . | . . . . . . . Parts Scanalyzed . | . . . . . . . Part Schematics Acquired . | . . . . . . . Parts Damaged . | . . . . . . . Bothacking | -11 -10 -9 -8 -7 -6 -5 ------------ Run | Yrd Mat Mat Mat Fac Fac Fac Used RIF Installer . | . . . . . . . Robots Hacked . | . . . . . . . Non-combat . | . . . . . . . Combat . | . . . . . . . Robot Hacks Applied . | . . . . . . . Relay Couplers Released . | . . . . . . . Fabnet Peak Effective % . | . . . . . . . Robots Rewired . | . . . . . . . Allies Hacked . | . . . . . . . Hacks Repelled . | . . . . . . . Allies | -11 -10 -9 -8 -7 -6 -5 -------- Run | Yrd Mat Mat Mat Fac Fac Fac Total Allies . | . . . . . . . Largest Group . | . . . . . . . Highest-Rated Group . | . . . . . . . Highest-Rated Ally . | . . . . . . . Total Orders . | . . . . . . . Ally Attacks . | . . . . . . . Total Damage . | . . . . . . . Kills . | . . . . . . . Allies Corrupted . | . . . . . . . Allies Melted . | . . . . . . . Intel | -11 -10 -9 -8 -7 -6 -5 ------- Run | Yrd Mat Mat Mat Fac Fac Fac Robot Analysis Total 1 | . 1 . . . . . Derelict Logs Recovered . | . . . . . . . Drone Launches . | . . . . . . . Drone Recoveries . | . . . . . . . Exploration | -11 -10 -9 -8 -7 -6 -5 ------------- Run | Yrd Mat Mat Mat Fac Fac Fac Turns Passed 3344 | 61 520 417 699 691 512 444 Spaces Moved 1892 | 41 199 167 394 501 334 256 Core 4 | 3 . . . . . 1 Treads 271 | . 75 5 191 . . . Legs 93 | 38 55 . . . . . Wheels 1524 | . 69 162 203 501 334 255 Hover . | . . . . . . . Flight . | . . . . . . . Fastest Speed 50 | 50 120 175 105 101 101 50 Average Speed 128 | 114 202 179 132 102 107 113 Slowest Speed 320 | 120 320 320 240 115 120 210 Overloaded Moves . | . . . . . . . Propulsion Burnouts . | . . . . . . . Robots Hopped . | . . . . . . . Cave-ins Triggered . | . . . . . . . Exploration Rate (%) 19 | 3 45 17 35 15 11 9 Regions Visited 6 Branch Regions . Pre-discovered Areas . | . . . . . . . Known Exits Taken . | . . . . . . . Unknown Exits Taken 6 | 1 1 1 1 1 1 . Scrap Searched . | . . . . . . . Spaces Dug 1 | . . . . . . 1 Terrain Destroyed 50 | . . . 2 21 11 16 Melee 1 | . . . . . . 1 Projectile 4 | . . . . . 3 1 AOE 45 | . . . 2 21 8 14 Terrain Rammed . | . . . . . . . Walls Destroyed . | . . . . . . . Machines Disabled . | . . . . . . . Actions | -11 -10 -9 -8 -7 -6 -5 --------- Run | Yrd Mat Mat Mat Fac Fac Fac Total 2476 | 52 263 255 502 621 459 324 Wait 164 | . 4 34 . 32 86 8 Move 1886 | 40 198 166 393 500 333 256 Hop . | . . . . . . . Pick Up 101 | 6 20 19 25 19 5 7 Fast Attach 26 | 6 1 1 5 8 3 2 Attach 37 | . 4 4 10 5 8 6 Detach 5 | . . . 1 2 1 1 Swap 9 | . 6 2 1 . . . Drop 60 | . 1 12 21 21 3 2 Fire 106 | . 29 17 15 27 11 7 Melee 81 | . . . 31 7 9 34 Ram 1 | . . . . . . 1 Kick . | . . . . . . . Crush . | . . . . . . . Escape Stasis . | . . . . . . . Rewire . | . . . . . . . Trap . | . . . . . . . Miscellaneous . | . . . . . . . Route ------- -11/Scrapyard -10/Materials (discovered 3 exits: *Mat / [*Min x2]) -9/Materials -8/Materials -7/Factory -6/Factory -5/Factory History --------- Turn | Location | Event 16 | -11/Scrapyard | Discovered new exit (range 14) 62 | -11/Scrapyard | Entered Materials 119 | -10/Materials | Discovered new exit (range 15) 150 | -10/Materials | Discovered new exit (range 15) 303 | -10/Materials | Build established: Mutant 353 | -10/Materials | Lost 4 parts (1p2n1w) 536 | -10/Materials | Discovered new exit (range 9) 582 | -10/Materials | Entered another Materials area 582 | -9/Materials | Evolved 2 slots: Propulsion x1, Utility x1 902 | -9/Materials | Discovered new exit (range 7) 983 | -9/Materials | Repaired Imp. Treads 999 | -9/Materials | Entered another Materials area 999 | -8/Materials | Evolved 2 slots: Propulsion x2 1131 | -8/Materials | Lost 3 parts (1p1u1w) 1466 | -8/Materials | Lost 4 parts (3n1w) 1535 | -8/Materials | Discovered new exit (range 5) 1698 | -8/Materials | Entered Factory 1698 | -7/Factory | Evolved 2 slots: Utility x1, Weapon x1 1982 | -7/Factory | Repaired Arm. Wheel 1985 | -7/Factory | Garrison activated, responded to threat 2018 | -7/Factory | Build established: Scavenger-Gunner 2366 | -7/Factory | Discovered new exit (range 7) 2389 | -7/Factory | Entered another Factory area 2389 | -6/Factory | Evolved 2 slots: Utility x2 2435 | -6/Factory | Repaired Arm. Wheel 2456 | -6/Factory | Build established: Scavenger-Mutant 2468 | -6/Factory | Repaired Rocket Launcher 2568 | -6/Factory | Repaired Gatling Laser 2731 | -6/Factory | Discovered new exit (range 6) 2777 | -6/Factory | Lost 4 parts (2n1u1w) 2901 | -6/Factory | Entered another Factory area 2901 | -5/Factory | Evolved 2 slots: Propulsion x1, Utility x1 3330 | -5/Factory | Core integrity fell below 50% 3336 | -5/Factory | Core integrity fell below 20% 3345 | -5/Factory | Destroyed by H-71 Marshal with Heavy Mass Driver Last Messages --------------- U-05 Engineer builds a Wall. K-01 Serf collects debris. Hvy. Flak Cannon destroyed. H-71 Marshal misfires. System corrupted: Powered Hammer rejected. Slammed into H-71 Marshal. U-05 Engineer builds a Wall. Faulty Enh. Nuclear Core destroyed. Imp. Arc Projector destroyed. Penetrated by Slug. Imp. Targeting Computer destroyed. U-05 Engineer builds a Wall. System corrupted: Heat flow error (+106). U-05 Engineer destroyed. R-10 Processor collects Powered Hammer. G-50 Soldier knocked back. R-10 Processor collects Terrain Scanner. Powered Hammer destroyed. Dropped Huge Storage Unit. R-10 Processor collects Gatling Laser. Map ----- +----------------------------------------------------+ | ????#######+###### """ ""????" ??? ""???????????? | | ??????????# #????? """ """???" ??? ""???????????? | | ??????????# ###### ?? ? ???????? | | ??????????# """ "?????" """ """ ""???????? | | ??????????# """ ""????" """ """ """??????? | | ??????????# """ """ """ """ """ """??????? | | ??????????# ????????? | | ??????????# ??????????? | | ??????????##### ############## #???????????? | | ??????????????# # """ # #???????????? | | ??????????????# + "T" # #???????????? | | ??????????????#^^^# + % #???????????? | | ??????????????# # # #???????????? | | ??????????????# + # #???????????? | | ??????????????##### """" """" # #???????????? | | ??????????????????# """" """" # #???????????? | | ??????????????????# """" """" # #???????????? | | ??????????????????# """" """" # #???????????? | | ??????????????????# """" """" # #???????????? | | ??????????????????# """" """" # T???????????? | | ??????????????????# # #??????????? | | ??????????????????############## ##??????????? | | ??????????????????# # #???????????? | | ??????????????????# u # #???????????? | | ??????????????????# HRgk[ # #???????????? | | ??????????????????# xx@kR[ # #???????????? | | ??????????????????# Rmg!!!! # #???????????? | | ??????????????????######k####### #???????????? | | ????????????????????# %% ??????????? | | ????????????????????# % ??????????? | | ???????????????????## % ??????????? | | ?????????????????? ???????????? | | ????????????????? ???????????? | | ??????????????? #####+#####????????????? | | ?????????????? #???? ???????????????? | | ????????????? #????? #?????????????? | | ???????????? #?????? #?????????????? | | ???????????? ######## #??????? #?????????????? | | ????????????????????# #??????? ??????????????? | | ????????????????????# #??????????????????????? | | ????????????????????#######??????????????????????? | | ?????????????????????????????????????????????????? | | ?????????????????????????????????????????????????? | | ?????????????????????????????????????????????????? | | ?????????????????????????????????????????????????? | | ?????????????????????????????????????????????????? | | ?????????????????????????????????????????????????? | | ?????????????????????????????????????????????????? | | ?????????????????????????????????????????????????? | | ?????????????????????????????????????????????????? | +----------------------------------------------------+ Best States ------------- Heat Dissipation 54 Energy Generation 16 Energy Capacity 290 Matter Stores 450 Matter Capacity 450 Sight Range 16 Robot Scan Range 14 Terrain Scan Density 10 Armor Coverage 150 Propulsion Shielding 33 Melee Speed Boost 20 Evasion (%) 55 Targeting Accuracy 6 Melee Accuracy 5 Recoil Reduction 5 Item Schematics ----------------- None Robot Schematics ------------------ None Fabricated ------------ Nothing Alien Tech Used ----------------- None Achievements -------------- None Challenges ------------ None Game ------ Seed BoltSkeletonSteel Manual? 0 Play Time 01:04:47 Cumulative 39.0 hours Start 2024.10.18 @ 01:57:36 End 2024.10.20 @ 06:15:09 Sessions 2 Manual Loads 0 Difficulty Rogue Special Mode None Game No. 26 Rogue 26 Adventurer 0 Explorer 0 Win Type - Total 0 Types 0/0/0/0/0/0/0/0/0 Lore% 12 Gallery% 34 Achievement% 26 Wizard Run 0 Options --------- Layout 1 ASCII 0 Keyboard 1 Movement Numpad Keybinds 0 Fullscreen 1 Font 24/Smallcaps Map View 50x35 Zoom Use 0% Tactical HUD 0 Map Filters NONE Filters NONE Steam 1 RUN: 9d8a458d-a073-4ed0-a902-703481e38699